[Event "Titled Tuesday Blitz February 14 Late 2023"]
[White "Yoo, Christopher Woojin"]
[Black "Barp, Alberto"]
[WhiteFideId "30909694"]
[BlackFideId "872555"]
[WhiteElo "2607"]
[BlackElo "2432"]
[Result "1-0"]
[Round "08"]
[TimeControl "180+2"]
[Date "2023.02.14"]
[WhiteClock "0:00:06"]
[BlackClock "0:00:04"]

1. e4 {[%clk 0:03:00]}  c5 {[%clk 0:02:56]} 2. Nf3 {[%clk 0:03:00]}  a6 {[%clk 0:02:55]} 3. c3 {[%clk 0:02:55]}  d5 {[%clk 0:02:53]} 4. exd5 {[%clk 0:02:55]}  Qxd5 {[%clk 0:02:54]} 5. d4 {[%clk 0:02:55]}  e6 {[%clk 0:02:55]} 6. Be3 {[%clk 0:02:54]}  cxd4 {[%clk 0:02:50]} 7. cxd4 {[%clk 0:02:53]}  Nf6 {[%clk 0:02:50]} 8. Nc3 {[%clk 0:02:53]}  Qd6 {[%clk 0:02:50]} 9. Bd3 {[%clk 0:02:37]}  Nc6 {[%clk 0:02:49]} 10. O-O {[%clk 0:02:37]}  Nb4 {[%clk 0:02:50]} 11. Ne4 {[%clk 0:02:34]}  Nxe4 {[%clk 0:02:49]} 12. Bxe4 {[%clk 0:02:35]}  Be7 {[%clk 0:02:47]} 13. Ne5 {[%clk 0:02:34]}  Nd5 {[%clk 0:02:45]} 14. Qf3 {[%clk 0:02:22]}  O-O {[%clk 0:02:40]} 15. Rac1 {[%clk 0:02:19]}  Bf6 {[%clk 0:02:18]} 16. Rfd1 {[%clk 0:02:03]}  Bxe5 {[%clk 0:02:09]} 17. dxe5 {[%clk 0:02:00]}  Qxe5 {[%clk 0:02:09]} 18. Bd4 {[%clk 0:02:00]}  Qg5 {[%clk 0:02:09]} 19. g3 {[%clk 0:01:34]}  Bd7 {[%clk 0:02:01]} 20. h4 {[%clk 0:01:33]}  Qh6 {[%clk 0:01:56]} 21. Be3 {[%clk 0:01:23]}  Qf6 {[%clk 0:01:27]} 22. Qxf6 {[%clk 0:00:59]}  gxf6 {[%clk 0:01:27]} 23. Bxd5 {[%clk 0:00:37]}  exd5 {[%clk 0:01:28]} 24. Rc7 {[%clk 0:00:37]}  Bc6 {[%clk 0:01:22]} 25. Rd4 {[%clk 0:00:37]}  f5 {[%clk 0:00:55]} 26. g4 {[%clk 0:00:30]}  Rac8 {[%clk 0:00:47]} 27. Rxc8 {[%clk 0:00:29]}  Rxc8 {[%clk 0:00:48]} 28. gxf5 {[%clk 0:00:29]}  f6 {[%clk 0:00:47]} 29. Kf1 {[%clk 0:00:22]}  Kf7 {[%clk 0:00:45]} 30. Bh6 {[%clk 0:00:16]}  Re8 {[%clk 0:00:41]} 31. f3 {[%clk 0:00:12]}  Bb5+ {[%clk 0:00:24]} 32. Kf2 {[%clk 0:00:07]}  Re2+ {[%clk 0:00:24]} 33. Kg3 {[%clk 0:00:08]}  Rxb2 {[%clk 0:00:18]} 34. Rg4 {[%clk 0:00:07]}  d4 {[%clk 0:00:16]} 35. Rg7+ {[%clk 0:00:08]}  Ke8 {[%clk 0:00:16]} 36. Rxh7 {[%clk 0:00:05]}  d3 {[%clk 0:00:16]} 37. Rh8+ {[%clk 0:00:04]}  Kd7 {[%clk 0:00:16]} 38. Rh7+ {[%clk 0:00:05]}  Kc6 {[%clk 0:00:15]} 39. Rh8 {[%clk 0:00:04]}  Kd7 {[%clk 0:00:11]} 40. Rh7+ {[%clk 0:00:04]}  Kd6 {[%clk 0:00:11]} 41. Bf4+ {[%clk 0:00:03]}  Kc6 {[%clk 0:00:10]} 42. Rc7+ {[%clk 0:00:03]}  Kd5 {[%clk 0:00:08]} 43. Rc8 {[%clk 0:00:02]}  Kd4 {[%clk 0:00:04]} 44. Rd8+ {[%clk 0:00:02]}  Kc3 {[%clk 0:00:05]} 45. h5 {[%clk 0:00:03]}  d2 {[%clk 0:00:05]} 46. h6 {[%clk 0:00:03]}  Rb1 {[%clk 0:00:04]} 47. Bxd2+ {[%clk 0:00:03]}  Kc2 {[%clk 0:00:03]} 48. h7 {[%clk 0:00:03]}  Rh1 {[%clk 0:00:03]} 49. h8=Q {[%clk 0:00:03]}  Rxh8 {[%clk 0:00:04]} 50. Rxh8 {[%clk 0:00:04]}  Kxd2 {[%clk 0:00:05]} 51. Rf8 {[%clk 0:00:04]}  Bc4 {[%clk 0:00:04]} 52. Rxf6 {[%clk 0:00:05]}  Bxa2 {[%clk 0:00:05]} 53. Rb6 {[%clk 0:00:05]}  Bd5 {[%clk 0:00:04]} 54. f6 {[%clk 0:00:06]} 1-0


[Site "https://www.chess.com"]

[Event "Titled Tuesday Blitz February 14 Late 2023"]
[White "Golubka, Petro"]
[Black "Sjugirov, Sanan"]
[WhiteFideId "14114224"]
[BlackFideId "4189302"]
[WhiteElo "2371"]
[BlackElo "2712"]
[Result "0-1"]
[Round "08"]
[TimeControl "180+2"]
[Date "2023.02.14"]
[WhiteClock "0:00:23"]
[BlackClock "0:00:06"]

1. e4 {[%clk 0:02:58]}  c5 {[%clk 0:02:59]} 2. Nf3 {[%clk 0:02:56]}  Nc6 {[%clk 0:03:00]} 3. d4 {[%clk 0:02:53]}  cxd4 {[%clk 0:03:01]} 4. Nxd4 {[%clk 0:02:54]}  Nf6 {[%clk 0:03:01]} 5. Nc3 {[%clk 0:02:53]}  d6 {[%clk 0:03:02]} 6. Bg5 {[%clk 0:02:52]}  e6 {[%clk 0:03:02]} 7. f3 {[%clk 0:02:40]}  a6 {[%clk 0:02:58]} 8. Qd2 {[%clk 0:02:39]}  Bd7 {[%clk 0:02:58]} 9. O-O-O {[%clk 0:02:38]}  Be7 {[%clk 0:02:54]} 10. h4 {[%clk 0:02:38]}  h6 {[%clk 0:02:52]} 11. Be3 {[%clk 0:02:37]}  b5 {[%clk 0:02:50]} 12. Kb1 {[%clk 0:02:34]}  Rc8 {[%clk 0:02:47]} 13. g4 {[%clk 0:02:26]}  Ne5 {[%clk 0:02:43]} 14. Bd3 {[%clk 0:02:25]}  Qc7 {[%clk 0:01:57]} 15. g5 {[%clk 0:02:21]}  Nh5 {[%clk 0:01:57]} 16. gxh6 {[%clk 0:02:17]}  g6 {[%clk 0:01:58]} 17. Bg5 {[%clk 0:02:15]}  Qb6 {[%clk 0:01:45]} 18. Nce2 {[%clk 0:02:13]}  Bf8 {[%clk 0:01:37]} 19. Rhg1 {[%clk 0:02:08]}  Qc5 {[%clk 0:01:20]} 20. Be3 {[%clk 0:02:06]}  Qc7 {[%clk 0:01:20]} 21. f4 {[%clk 0:02:02]}  Nxd3 {[%clk 0:01:18]} 22. cxd3 {[%clk 0:02:01]}  Bxh6 {[%clk 0:01:17]} 23. f5 {[%clk 0:02:01]}  Bxe3 {[%clk 0:01:09]} 24. Qxe3 {[%clk 0:02:01]}  gxf5 {[%clk 0:01:10]} 25. exf5 {[%clk 0:02:00]}  e5 {[%clk 0:01:10]} 26. Rc1 {[%clk 0:01:53]}  Qd8 {[%clk 0:01:10]} 27. Rg5 {[%clk 0:01:49]}  Nf6 {[%clk 0:01:06]} 28. Rcg1 {[%clk 0:01:42]}  Qe7 {[%clk 0:01:01]} 29. Nf3 {[%clk 0:01:41]}  Bc6 {[%clk 0:00:53]} 30. a3 {[%clk 0:01:25]}  Kd7 {[%clk 0:00:41]} 31. Nc3 {[%clk 0:01:18]}  Rc7 {[%clk 0:00:30]} 32. Rg7 {[%clk 0:01:16]}  Nd5 {[%clk 0:00:23]} 33. Nxd5 {[%clk 0:01:11]}  Bxd5 {[%clk 0:00:24]} 34. R1g4 {[%clk 0:00:52]}  Qf6 {[%clk 0:00:19]} 35. Qg5 {[%clk 0:00:47]}  Qxg5 {[%clk 0:00:19]} 36. Nxg5 {[%clk 0:00:48]}  Ke7 {[%clk 0:00:14]} 37. Ne4 {[%clk 0:00:43]}  Bxe4 {[%clk 0:00:08]} 38. dxe4 {[%clk 0:00:42]}  Rc4 {[%clk 0:00:08]} 39. R7g5 {[%clk 0:00:33]}  Kf6 {[%clk 0:00:08]} 40. Rg7 {[%clk 0:00:33]}  d5 {[%clk 0:00:07]} 41. exd5 {[%clk 0:00:32]}  Rxg4 {[%clk 0:00:07]} 42. Rxg4 {[%clk 0:00:32]}  Kxf5 {[%clk 0:00:08]} 43. Rg5+ {[%clk 0:00:31]}  Kf6 {[%clk 0:00:08]} 44. Rg4 {[%clk 0:00:31]}  Ke7 {[%clk 0:00:05]} 45. a4 {[%clk 0:00:29]}  Kd6 {[%clk 0:00:04]} 46. axb5 {[%clk 0:00:29]}  axb5 {[%clk 0:00:05]} 47. Rg7 {[%clk 0:00:28]}  f5 {[%clk 0:00:05]} 48. Rb7 {[%clk 0:00:27]}  Kxd5 {[%clk 0:00:05]} 49. Rxb5+ {[%clk 0:00:27]}  Ke4 {[%clk 0:00:05]} 50. Rb4+ {[%clk 0:00:26]}  Kf3 {[%clk 0:00:06]} 51. Rb5 {[%clk 0:00:23]}  Kf4 {[%clk 0:00:06]} 52. Rb7 {[%clk 0:00:22]}  Rxh4 {[%clk 0:00:05]} 53. b4 {[%clk 0:00:23]}  e4 {[%clk 0:00:05]} 54. b5 {[%clk 0:00:24]}  e3 {[%clk 0:00:05]} 55. b6 {[%clk 0:00:24]}  Rh1+ {[%clk 0:00:05]} 56. Kc2 {[%clk 0:00:23]}  e2 {[%clk 0:00:06]} 0-1


[Site "https://www.chess.com"]

[Event "Titled Tuesday Blitz February 14 Late 2023"]
[White "Jaracz, Pawel"]
[Black "Rasulov, Vugar"]
[WhiteFideId "1102222"]
[BlackFideId "13402390"]
[WhiteElo "2467"]
[BlackElo "2523"]
[Result "1-0"]
[Round "08"]
[TimeControl "180+2"]
[Date "2023.02.14"]
[WhiteClock "0:00:21"]
[BlackClock "0:00:02"]

1. e4 {[%clk 0:03:00]}  c5 {[%clk 0:02:59]} 2. Nf3 {[%clk 0:03:00]}  e6 {[%clk 0:03:00]} 3. d4 {[%clk 0:03:00]}  cxd4 {[%clk 0:03:01]} 4. Nxd4 {[%clk 0:03:01]}  Nc6 {[%clk 0:03:01]} 5. Nc3 {[%clk 0:03:01]}  Qc7 {[%clk 0:03:02]} 6. Be2 {[%clk 0:03:00]}  a6 {[%clk 0:03:02]} 7. O-O {[%clk 0:03:00]}  Nf6 {[%clk 0:03:02]} 8. Be3 {[%clk 0:03:00]}  Bb4 {[%clk 0:03:00]} 9. Na4 {[%clk 0:03:00]}  Be7 {[%clk 0:03:00]} 10. c4 {[%clk 0:02:56]}  O-O {[%clk 0:02:54]} 11. Nc3 {[%clk 0:02:54]}  b6 {[%clk 0:02:52]} 12. Rc1 {[%clk 0:02:53]}  Bb7 {[%clk 0:02:52]} 13. f3 {[%clk 0:02:27]}  Rac8 {[%clk 0:02:50]} 14. Kh1 {[%clk 0:02:25]}  Ne5 {[%clk 0:02:46]} 15. Na4 {[%clk 0:02:21]}  d6 {[%clk 0:02:34]} 16. b4 {[%clk 0:02:15]}  Ned7 {[%clk 0:02:28]} 17. Nb3 {[%clk 0:02:13]}  Bc6 {[%clk 0:02:23]} 18. Nc3 {[%clk 0:02:01]}  Qb8 {[%clk 0:02:23]} 19. Qd2 {[%clk 0:01:58]}  Bd8 {[%clk 0:02:18]} 20. Rb1 {[%clk 0:01:57]}  Bb7 {[%clk 0:02:12]} 21. a4 {[%clk 0:01:52]}  Ne5 {[%clk 0:02:09]} 22. c5 {[%clk 0:01:44]}  d5 {[%clk 0:02:01]} 23. cxb6 {[%clk 0:01:14]}  dxe4 {[%clk 0:02:00]} 24. f4 {[%clk 0:01:11]}  Neg4 {[%clk 0:01:54]} 25. a5 {[%clk 0:01:05]}  Be7 {[%clk 0:01:50]} 26. Bc5 {[%clk 0:01:04]}  e3 {[%clk 0:01:47]} 27. Qe1 {[%clk 0:01:01]}  Rfe8 {[%clk 0:01:25]} 28. Qg3 {[%clk 0:00:59]}  Nf2+ {[%clk 0:01:23]} 29. Kg1 {[%clk 0:00:57]}  N2e4 {[%clk 0:01:18]} 30. Nxe4 {[%clk 0:00:55]}  Nxe4 {[%clk 0:01:19]} 31. Qxe3 {[%clk 0:00:55]}  Bd5 {[%clk 0:01:13]} 32. Rbc1 {[%clk 0:00:54]}  Bf6 {[%clk 0:01:01]} 33. Bxa6 {[%clk 0:00:49]}  Rcd8 {[%clk 0:00:49]} 34. Bb5 {[%clk 0:00:49]}  Re7 {[%clk 0:00:18]} 35. a6 {[%clk 0:00:49]}  h5 {[%clk 0:00:12]} 36. Na5 {[%clk 0:00:48]}  Nxc5 {[%clk 0:00:08]} 37. bxc5 {[%clk 0:00:44]}  Ba8 {[%clk 0:00:05]} 38. Rfd1 {[%clk 0:00:40]}  e5 {[%clk 0:00:05]} 39. f5 {[%clk 0:00:39]}  e4 {[%clk 0:00:05]} 40. b7 {[%clk 0:00:30]}  Kh7 {[%clk 0:00:03]} 41. Nc6 {[%clk 0:00:29]}  Rxd1+ {[%clk 0:00:02]} 42. Rxd1 {[%clk 0:00:29]}  Qc7 {[%clk 0:00:01]} 43. bxa8=Q {[%clk 0:00:26]}  Rd7 {[%clk 0:00:02]} 44. Re1 {[%clk 0:00:21]} 1-0


[Site "https://www.chess.com"]

[Event "Titled Tuesday Blitz February 14 Late 2023"]
[White "Salimova, Nurgyul"]
[Black "Gharibyan, Mamikon"]
[WhiteFideId "2915138"]
[BlackFideId "13308300"]
[WhiteElo "2391"]
[BlackElo "2500"]
[Result "1-0"]
[Round "08"]
[TimeControl "180+2"]
[Date "2023.02.14"]
[WhiteClock "0:00:13"]
[BlackClock "0:00:03"]

1. e4 {[%clk 0:03:00]}  e5 {[%clk 0:02:54]} 2. Nc3 {[%clk 0:02:52]}  Nf6 {[%clk 0:02:52]} 3. f4 {[%clk 0:02:53]}  d5 {[%clk 0:02:52]} 4. fxe5 {[%clk 0:02:52]}  Nxe4 {[%clk 0:02:52]} 5. Qf3 {[%clk 0:02:53]}  f5 {[%clk 0:02:52]} 6. d3 {[%clk 0:02:50]}  Nxc3 {[%clk 0:02:51]} 7. bxc3 {[%clk 0:02:51]}  c5 {[%clk 0:02:43]} 8. d4 {[%clk 0:02:51]}  Nc6 {[%clk 0:02:42]} 9. Bb5 {[%clk 0:02:38]}  cxd4 {[%clk 0:02:33]} 10. Ne2 {[%clk 0:02:36]}  dxc3 {[%clk 0:02:24]} 11. Rb1 {[%clk 0:02:25]}  Be7 {[%clk 0:02:17]} 12. O-O {[%clk 0:02:22]}  O-O {[%clk 0:02:16]} 13. Kh1 {[%clk 0:02:17]}  Nxe5 {[%clk 0:02:06]} 14. Qxc3 {[%clk 0:02:17]}  Bf6 {[%clk 0:02:07]} 15. Qg3 {[%clk 0:02:16]}  Nc4 {[%clk 0:02:01]} 16. Rd1 {[%clk 0:02:09]}  Nb6 {[%clk 0:01:37]} 17. Ba3 {[%clk 0:01:38]}  Be7 {[%clk 0:01:35]} 18. Bb2 {[%clk 0:01:37]}  Bf6 {[%clk 0:01:34]} 19. Ba3 {[%clk 0:01:37]}  Rf7 {[%clk 0:01:21]} 20. Nf4 {[%clk 0:01:22]}  Bd7 {[%clk 0:01:19]} 21. Nxd5 {[%clk 0:01:15]}  Bxb5 {[%clk 0:01:14]} 22. Rxb5 {[%clk 0:01:16]}  Nxd5 {[%clk 0:01:02]} 23. Rbxd5 {[%clk 0:01:14]}  Qc8 {[%clk 0:01:00]} 24. Qb3 {[%clk 0:01:02]}  Kh8 {[%clk 0:00:37]} 25. h3 {[%clk 0:01:02]}  Qg8 {[%clk 0:00:34]} 26. Rxf5 {[%clk 0:01:01]}  Rc7 {[%clk 0:00:33]} 27. Qf3 {[%clk 0:00:55]}  Rc6 {[%clk 0:00:30]} 28. Bd6 {[%clk 0:00:48]}  Qe6 {[%clk 0:00:25]} 29. Be5 {[%clk 0:00:32]}  Rg8 {[%clk 0:00:11]} 30. Bxf6 {[%clk 0:00:23]}  gxf6 {[%clk 0:00:11]} 31. Rf1 {[%clk 0:00:20]}  Qxa2 {[%clk 0:00:07]} 32. Rxf6 {[%clk 0:00:19]}  Qxc2 {[%clk 0:00:05]} 33. Rf7 {[%clk 0:00:16]}  Qg6 {[%clk 0:00:03]} 34. Qd5 {[%clk 0:00:13]} 1-0


[Site "https://www.chess.com"]

[Event "Titled Tuesday Blitz February 14 Late 2023"]
[White "Samsonkin, Artiom"]
[Black "EREBUNI91"]
[WhiteFideId "13503111"]
[WhiteElo "2420"]
[BlackElo "2724"]
[Result "0-1"]
[Round "08"]
[TimeControl "180+2"]
[Date "2023.02.14"]
[WhiteClock "0:00:05"]
[BlackClock "0:00:27"]

1. e4 {[%clk 0:03:00]}  c5 {[%clk 0:02:57]} 2. Nf3 {[%clk 0:03:01]}  d6 {[%clk 0:02:53]} 3. d4 {[%clk 0:02:56]}  cxd4 {[%clk 0:02:54]} 4. Nxd4 {[%clk 0:02:57]}  Nf6 {[%clk 0:02:51]} 5. Nc3 {[%clk 0:02:57]}  a6 {[%clk 0:02:50]} 6. Be2 {[%clk 0:02:48]}  e5 {[%clk 0:02:48]} 7. Nf3 {[%clk 0:02:48]}  Be7 {[%clk 0:02:48]} 8. Bg5 {[%clk 0:02:47]}  Be6 {[%clk 0:02:45]} 9. Bxf6 {[%clk 0:02:46]}  Bxf6 {[%clk 0:02:46]} 10. O-O {[%clk 0:02:46]}  Nd7 {[%clk 0:02:43]} 11. Nd5 {[%clk 0:02:46]}  Rc8 {[%clk 0:02:37]} 12. c4 {[%clk 0:02:44]}  O-O {[%clk 0:02:34]} 13. Qd2 {[%clk 0:02:26]}  Bxd5 {[%clk 0:02:27]} 14. Qxd5 {[%clk 0:02:16]}  Nc5 {[%clk 0:02:26]} 15. Rfd1 {[%clk 0:02:14]}  Ne6 {[%clk 0:02:17]} 16. b3 {[%clk 0:01:57]}  Rc6 {[%clk 0:02:10]} 17. g3 {[%clk 0:01:53]}  h5 {[%clk 0:02:04]} 18. Bf1 {[%clk 0:01:52]}  h4 {[%clk 0:01:59]} 19. Bh3 {[%clk 0:01:49]}  Qe7 {[%clk 0:01:57]} 20. Kg2 {[%clk 0:01:46]}  Nd4 {[%clk 0:01:50]} 21. Nxd4 {[%clk 0:01:39]}  exd4 {[%clk 0:01:51]} 22. Qf5 {[%clk 0:01:39]}  Qe5 {[%clk 0:01:41]} 23. Qxe5 {[%clk 0:01:06]}  dxe5 {[%clk 0:01:42]} 24. a4 {[%clk 0:01:02]}  a5 {[%clk 0:01:37]} 25. f4 {[%clk 0:00:53]}  Rd8 {[%clk 0:01:32]} 26. Rd3 {[%clk 0:00:53]}  g6 {[%clk 0:01:29]} 27. Kf3 {[%clk 0:00:53]}  Kg7 {[%clk 0:01:25]} 28. Rc1 {[%clk 0:00:52]}  hxg3 {[%clk 0:01:21]} 29. hxg3 {[%clk 0:00:52]}  Rb6 {[%clk 0:01:21]} 30. c5 {[%clk 0:00:41]}  Rc6 {[%clk 0:01:18]} 31. Rc4 {[%clk 0:00:41]}  Be7 {[%clk 0:01:03]} 32. fxe5 {[%clk 0:00:39]}  Bxc5 {[%clk 0:01:02]} 33. Ke2 {[%clk 0:00:30]}  b6 {[%clk 0:00:58]} 34. Rf3 {[%clk 0:00:21]}  Re8 {[%clk 0:00:56]} 35. e6 {[%clk 0:00:20]}  fxe6 {[%clk 0:00:54]} 36. Kd3 {[%clk 0:00:21]}  e5 {[%clk 0:00:54]} 37. Rc1 {[%clk 0:00:20]}  Rf6 {[%clk 0:00:53]} 38. Rxf6 {[%clk 0:00:19]}  Kxf6 {[%clk 0:00:54]} 39. Rf1+ {[%clk 0:00:19]}  Kg7 {[%clk 0:00:54]} 40. Bd7 {[%clk 0:00:19]}  Rh8 {[%clk 0:00:53]} 41. Be6 {[%clk 0:00:19]}  Rh2 {[%clk 0:00:49]} 42. g4 {[%clk 0:00:12]}  Kh6 {[%clk 0:00:46]} 43. Kc4 {[%clk 0:00:08]}  Kg5 {[%clk 0:00:39]} 44. Kd5 {[%clk 0:00:09]}  d3 {[%clk 0:00:37]} 45. Kxe5 {[%clk 0:00:09]}  d2 {[%clk 0:00:37]} 46. Bc4 {[%clk 0:00:09]}  Rf2 {[%clk 0:00:33]} 47. Rd1 {[%clk 0:00:09]}  Kxg4 {[%clk 0:00:33]} 48. Kd5 {[%clk 0:00:08]}  Kf4 {[%clk 0:00:29]} 49. e5 {[%clk 0:00:05]}  Ke3 {[%clk 0:00:28]} 50. e6 {[%clk 0:00:06]}  g5 {[%clk 0:00:28]} 51. Rg1 {[%clk 0:00:05]}  g4 {[%clk 0:00:27]} 0-1


[Site "https://www.chess.com"]

[Event "Titled Tuesday Blitz February 14 Late 2023"]
[White "Boros, Denes"]
[Black "Boyer, Mahel"]
[WhiteFideId "722340"]
[BlackFideId "45102422"]
[WhiteElo "2406"]
[BlackElo "2489"]
[Result "1/2-1/2"]
[Round "08"]
[TimeControl "180+2"]
[Date "2023.02.14"]
[WhiteClock "0:00:15"]
[BlackClock "0:00:08"]

1. e4 {[%clk 0:03:00]}  Nc6 {[%clk 0:02:59]} 2. Bb5 {[%clk 0:02:59]}  d5 {[%clk 0:03:00]} 3. Nc3 {[%clk 0:02:56]}  dxe4 {[%clk 0:03:00]} 4. f3 {[%clk 0:02:51]}  e5 {[%clk 0:02:50]} 5. fxe4 {[%clk 0:02:50]}  Bc5 {[%clk 0:02:48]} 6. Nf3 {[%clk 0:02:48]}  Ne7 {[%clk 0:02:48]} 7. d3 {[%clk 0:02:46]}  O-O {[%clk 0:02:47]} 8. Bc4 {[%clk 0:02:31]}  Na5 {[%clk 0:02:31]} 9. Bb3 {[%clk 0:02:31]}  Nxb3 {[%clk 0:02:31]} 10. axb3 {[%clk 0:02:32]}  Ng6 {[%clk 0:02:28]} 11. Qe2 {[%clk 0:02:26]}  Re8 {[%clk 0:02:18]} 12. Be3 {[%clk 0:02:19]}  Nf4 {[%clk 0:02:18]} 13. Bxf4 {[%clk 0:02:19]}  exf4 {[%clk 0:02:19]} 14. O-O-O {[%clk 0:02:14]}  Be3+ {[%clk 0:02:17]} 15. Kb1 {[%clk 0:02:14]}  c6 {[%clk 0:02:18]} 16. g3 {[%clk 0:02:13]}  a5 {[%clk 0:02:12]} 17. gxf4 {[%clk 0:02:11]}  Bxf4 {[%clk 0:02:13]} 18. h4 {[%clk 0:02:01]}  a4 {[%clk 0:02:10]} 19. bxa4 {[%clk 0:02:01]}  b5 {[%clk 0:02:10]} 20. Ng5 {[%clk 0:01:58]}  h6 {[%clk 0:02:03]} 21. Nxf7 {[%clk 0:01:51]}  Qf6 {[%clk 0:01:57]} 22. Ng5 {[%clk 0:01:34]}  hxg5 {[%clk 0:01:56]} 23. hxg5 {[%clk 0:01:32]}  Bxg5 {[%clk 0:01:57]} 24. Qh5 {[%clk 0:01:32]}  Be6 {[%clk 0:01:49]} 25. Qh7+ {[%clk 0:01:28]}  Kf8 {[%clk 0:01:41]} 26. Rdf1 {[%clk 0:01:28]}  Bf4 {[%clk 0:01:41]} 27. Ne2 {[%clk 0:01:18]}  g5 {[%clk 0:01:15]} 28. e5 {[%clk 0:00:58]}  Qg7 {[%clk 0:00:54]} 29. Nxf4 {[%clk 0:00:42]}  Qxh7 {[%clk 0:00:53]} 30. Nxe6+ {[%clk 0:00:42]}  Kg8 {[%clk 0:00:52]} 31. Rxh7 {[%clk 0:00:42]}  Kxh7 {[%clk 0:00:52]} 32. Nxg5+ {[%clk 0:00:42]}  Kg6 {[%clk 0:00:47]} 33. Ne4 {[%clk 0:00:43]}  Rxe5 {[%clk 0:00:38]} 34. Rf6+ {[%clk 0:00:40]}  Kg7 {[%clk 0:00:38]} 35. Rxc6 {[%clk 0:00:40]}  Rxa4 {[%clk 0:00:32]} 36. b3 {[%clk 0:00:32]}  Ra7 {[%clk 0:00:30]} 37. Kb2 {[%clk 0:00:29]}  Kf7 {[%clk 0:00:27]} 38. Rh6 {[%clk 0:00:26]}  Rae7 {[%clk 0:00:20]} 39. b4 {[%clk 0:00:23]}  Kf8 {[%clk 0:00:20]} 40. Rb6 {[%clk 0:00:22]}  R7e6 {[%clk 0:00:19]} 41. Rb7 {[%clk 0:00:20]}  Re7 {[%clk 0:00:19]} 42. Nd6 {[%clk 0:00:20]}  Rxb7 {[%clk 0:00:18]} 43. Nxb7 {[%clk 0:00:21]}  Ke7 {[%clk 0:00:19]} 44. Kb3 {[%clk 0:00:20]}  Kd7 {[%clk 0:00:19]} 45. Nc5+ {[%clk 0:00:19]}  Kc6 {[%clk 0:00:19]} 46. Ne4 {[%clk 0:00:19]}  Kd5 {[%clk 0:00:19]} 47. Nd2 {[%clk 0:00:19]}  Re3 {[%clk 0:00:17]} 48. Nb1 {[%clk 0:00:19]}  Kd4 {[%clk 0:00:14]} 49. Na3 {[%clk 0:00:19]}  Re5 {[%clk 0:00:14]} 50. Kb2 {[%clk 0:00:19]}  Rh5 {[%clk 0:00:13]} 51. Nb1 {[%clk 0:00:17]}  Rh2 {[%clk 0:00:12]} 52. Kb3 {[%clk 0:00:16]}  Rh5 {[%clk 0:00:10]} 53. Nd2 {[%clk 0:00:16]}  Rf5 {[%clk 0:00:10]} 54. Ne4 {[%clk 0:00:16]}  Rd5 {[%clk 0:00:09]} 55. Nf6 {[%clk 0:00:16]}  Rf5 {[%clk 0:00:09]} 56. Nd7 {[%clk 0:00:16]}  Rf1 {[%clk 0:00:05]} 57. Kb2 {[%clk 0:00:14]}  Rf5 {[%clk 0:00:05]} 58. Nc5 {[%clk 0:00:14]}  Rf2 {[%clk 0:00:04]} 59. Kb3 {[%clk 0:00:12]}  Rf1 {[%clk 0:00:05]} 60. Ne6+ {[%clk 0:00:12]}  Kd5 {[%clk 0:00:05]} 61. Nc7+ {[%clk 0:00:12]}  Kc6 {[%clk 0:00:05]} 62. Na6 {[%clk 0:00:13]}  Kd5 {[%clk 0:00:04]} 63. Kc3 {[%clk 0:00:12]}  Rb1 {[%clk 0:00:03]} 64. Nc5 {[%clk 0:00:13]}  Kc6 {[%clk 0:00:03]} 65. Nb3 {[%clk 0:00:13]}  Rh1 {[%clk 0:00:03]} 66. Nd4+ {[%clk 0:00:13]}  Kb6 {[%clk 0:00:04]} 67. Ne6 {[%clk 0:00:13]}  Rh5 {[%clk 0:00:04]} 68. Kb3 {[%clk 0:00:13]}  Rh6 {[%clk 0:00:04]} 69. Nf4 {[%clk 0:00:13]}  Rd6 {[%clk 0:00:04]} 70. Kc3 {[%clk 0:00:13]}  Rc6+ {[%clk 0:00:04]} 71. Kb3 {[%clk 0:00:13]}  Rd6 {[%clk 0:00:05]} 72. Ne2 {[%clk 0:00:13]}  Re6 {[%clk 0:00:05]} 73. Ng3 {[%clk 0:00:13]}  Re1 {[%clk 0:00:04]} 74. Nf5 {[%clk 0:00:13]}  Rb1+ {[%clk 0:00:05]} 75. Kc3 {[%clk 0:00:14]}  Rf1 {[%clk 0:00:06]} 76. Ne3 {[%clk 0:00:14]}  Rf3 {[%clk 0:00:05]} 77. Kd2 {[%clk 0:00:13]}  Kc6 {[%clk 0:00:05]} 78. Nd1 {[%clk 0:00:13]}  Rh3 {[%clk 0:00:05]} 79. Nc3 {[%clk 0:00:13]}  Rh2+ {[%clk 0:00:06]} 80. Kc1 {[%clk 0:00:13]}  Rh5 {[%clk 0:00:05]} 81. Kb2 {[%clk 0:00:14]}  Rh2 {[%clk 0:00:06]} 82. Kb3 {[%clk 0:00:14]}  Rg2 {[%clk 0:00:06]} 83. Nd1 {[%clk 0:00:14]}  Rg3 {[%clk 0:00:06]} 84. Nf2 {[%clk 0:00:14]}  Rg1 {[%clk 0:00:06]} 85. Ne4 {[%clk 0:00:14]}  Rb1+ {[%clk 0:00:06]} 86. Ka3 {[%clk 0:00:14]}  Rg1 {[%clk 0:00:07]} 87. Kb2 {[%clk 0:00:13]}  Rg6 {[%clk 0:00:06]} 88. c4 {[%clk 0:00:13]}  bxc4 {[%clk 0:00:06]} 89. dxc4 {[%clk 0:00:14]}  Rg4 {[%clk 0:00:07]} 90. Nd2 {[%clk 0:00:13]}  Rg3 {[%clk 0:00:06]} 91. Kc2 {[%clk 0:00:14]}  Rh3 {[%clk 0:00:06]} 92. Ne4 {[%clk 0:00:14]}  Re3 {[%clk 0:00:06]} 93. Nc3 {[%clk 0:00:14]}  Rh3 {[%clk 0:00:05]} 94. Nd5 {[%clk 0:00:14]}  Kd6 {[%clk 0:00:05]} 95. Kb2 {[%clk 0:00:10]}  Rg3 {[%clk 0:00:05]} 96. Nc3 {[%clk 0:00:09]}  Kc6 {[%clk 0:00:04]} 97. b5+ {[%clk 0:00:07]}  Kb6 {[%clk 0:00:05]} 98. Nd5+ {[%clk 0:00:07]}  Kc5 {[%clk 0:00:05]} 99. b6 {[%clk 0:00:08]}  Rg7 {[%clk 0:00:05]} 100. Kb3 {[%clk 0:00:08]}  Rb7 {[%clk 0:00:03]} 101. Kc3 {[%clk 0:00:08]}  Rxb6 {[%clk 0:00:02]} 102. Nxb6 {[%clk 0:00:09]}  Kxb6 {[%clk 0:00:03]} 103. Kd4 {[%clk 0:00:09]}  Kc6 {[%clk 0:00:03]} 104. Kd3 {[%clk 0:00:10]}  Kc5 {[%clk 0:00:04]} 105. Kc3 {[%clk 0:00:11]}  Kc6 {[%clk 0:00:05]} 106. Kd4 {[%clk 0:00:12]}  Kd6 {[%clk 0:00:05]} 107. Kd3 {[%clk 0:00:13]}  Kc5 {[%clk 0:00:06]} 108. Kc3 {[%clk 0:00:13]}  Kc6 {[%clk 0:00:06]} 109. Kb4 {[%clk 0:00:14]}  Kb6 {[%clk 0:00:07]} 110. Kb3 {[%clk 0:00:15]}  Kc5 {[%clk 0:00:08]} 111. Kc3 {[%clk 0:00:15]} 1/2-1/2


[Site "https://www.chess.com"]

[Event "Titled Tuesday Blitz February 14 Late 2023"]
[White "Remolar Gallen, Jose"]
[Black "Goltsev, Dmitry"]
[WhiteFideId "2215187"]
[BlackFideId "24176710"]
[WhiteElo "2285"]
[BlackElo "2269"]
[Result "0-1"]
[Round "08"]
[TimeControl "180+2"]
[Date "2023.02.14"]
[WhiteClock "0:00:39"]
[BlackClock "0:02:04"]

1. d4 {[%clk 0:03:00]}  Nf6 {[%clk 0:03:00]} 2. c4 {[%clk 0:03:00]}  e6 {[%clk 0:03:00]} 3. Nc3 {[%clk 0:03:00]}  Bb4 {[%clk 0:03:00]} 4. e3 {[%clk 0:03:00]}  b6 {[%clk 0:03:00]} 5. Ne2 {[%clk 0:02:54]}  Bb7 {[%clk 0:03:00]} 6. a3 {[%clk 0:02:54]}  Bxc3+ {[%clk 0:02:56]} 7. Nxc3 {[%clk 0:02:53]}  Qe7 {[%clk 0:02:57]} 8. Be2 {[%clk 0:02:39]}  a5 {[%clk 0:02:56]} 9. O-O {[%clk 0:02:31]}  d6 {[%clk 0:02:56]} 10. Bf3 {[%clk 0:02:26]}  c6 {[%clk 0:02:48]} 11. e4 {[%clk 0:02:24]}  e5 {[%clk 0:02:48]} 12. Bg5 {[%clk 0:02:19]}  Nbd7 {[%clk 0:02:47]} 13. g3 {[%clk 0:02:09]}  h6 {[%clk 0:02:42]} 14. Be3 {[%clk 0:02:07]}  exd4 {[%clk 0:02:39]} 15. Qxd4 {[%clk 0:01:43]}  Ne5 {[%clk 0:02:38]} 16. Bg2 {[%clk 0:01:10]}  c5 {[%clk 0:02:37]} 17. Qd1 {[%clk 0:01:08]}  O-O {[%clk 0:02:36]} 18. b3 {[%clk 0:01:04]}  Nc6 {[%clk 0:02:24]} 19. Qd2 {[%clk 0:00:55]}  Rad8 {[%clk 0:02:21]} 20. Rad1 {[%clk 0:00:53]}  Rfe8 {[%clk 0:02:20]} 21. Rfe1 {[%clk 0:00:52]}  Ng4 {[%clk 0:02:19]} 22. Bf4 {[%clk 0:00:49]}  Nd4 {[%clk 0:02:18]} 23. b4 {[%clk 0:00:45]}  axb4 {[%clk 0:02:16]} 24. axb4 {[%clk 0:00:45]}  Ne5 {[%clk 0:02:09]} 25. Nd5 {[%clk 0:00:38]}  Bxd5 {[%clk 0:02:06]} 26. exd5 {[%clk 0:00:39]}  Nef3+ {[%clk 0:02:04]} 0-1


[Site "https://www.chess.com"]